bitfinex-derivatives/quotes_BNBF0:USTF0_20251203
["timestamp","ask_amount","ask_price","bid_price","bid_amount"]
[1764799645555,0.62539799,915.37,913.83,1.59695995]
[1764799645854,0.62539799,915.36,913.83,1.59695995]
[1764799646049,0.62539799,915.36,913.77,1.397]
[1764799646050,0.62539799,915.35,913.82,1.59695995]
[1764799646248,0.62539799,915.34,913.79,1.59695995]
[1764799646452,0.62539799,915.33,913.79,1.59695995]
[1764799646652,0.62539799,915.32,913.79,1.59695995]
[1764799646851,0.62539799,915.31,913.79,1.59695995]
[1764799647056,0.62539799,915.3,913.79,1.59695995]
[1764799647257,0.62539799,915.29,913.79,1.59695995]
[1764799647452,0.62539799,915.28,913.79,1.59695995]
[1764799647751,0.62539799,915.27,913.77,1.397]
[1764799647955,1.08534688,915.35,913.77,1.397]
[1764799647956,0.62539799,915.26,913.77,1.397]
[1764799648154,0.62539799,915.25,913.77,1.397]
[1764799648359,0.62539799,915.24,913.77,1.397]
[1764799648555,0.62539799,915.23,913.77,1.397]
[1764799648756,0.62539799,915.22,913.77,1.397]
[1764799648958,0.62539799,915.21,913.77,1.397]
[1764799649156,0.62539799,915.2,913.77,1.397]
[1764799649359,0.62539799,915.19,913.77,1.397]
[1764799649660,0.62539799,915.18,913.77,1.397]
[1764799649956,0.62539799,915.17,913.77,1.397]
[1764799650158,0.62539799,915.16,913.77,1.397]
[1764799650356,0.62539799,915.15,913.77,1.397]
[1764799650661,0.62539799,915.14,913.77,1.397]
[1764799650861,0.62539799,915.13,913.77,1.397]
[1764799651157,0.62539799,915.12,913.77,1.397]
[1764799651457,0.62539799,915.11,913.77,1.397]
[1764799651656,1.08534688,915.22,913.77,1.397]
[1764799651657,0.62539799,915.1,913.77,1.397]
[1764799651859,0.62539799,915.09,913.77,1.397]
[1764799652058,0.62539799,915.08,913.77,1.397]
[1764799652260,0.62539799,915.07,913.77,1.397]
[1764799652455,0.62539799,915.06,913.77,1.397]
[1764799652660,0.62539799,915.05,913.77,1.397]
[1764799652858,0.62539799,915.04,913.77,1.397]
[1764799653061,0.62539799,915.03,913.77,1.397]
[1764799653357,0.62539799,915.02,913.77,1.397]
[1764799653561,0.62539799,915.01,913.77,1.397]
[1764799653755,0.62539799,915.0,913.77,1.397]
[1764799653958,0.62539799,914.99,913.77,1.397]
[1764799654157,0.62539799,914.98,913.77,1.397]
[1764799654362,0.62539799,914.97,913.77,1.397]
[1764799654558,0.62539799,914.96,913.77,1.397]
[1764799654760,0.62539799,914.95,913.77,1.397]
[1764799654958,0.62539799,914.94,913.77,1.397]
[1764799655161,0.62539799,914.93,913.77,1.397]
[1764799655363,0.62539799,914.92,913.77,1.397]
[1764799655564,0.62539799,914.91,913.77,1.397]
[1764799655863,0.62539799,914.9,913.77,1.397]
[1764799656064,0.62539799,914.89,913.77,1.397]
[1764799656264,0.62539799,914.88,913.77,1.397]
[1764799656560,0.62539799,914.87,913.77,1.397]
[1764799656864,0.62539799,914.86,913.77,1.397]
[1764799657065,0.62539799,914.85,913.77,1.397]
[1764799657261,0.62539799,914.84,913.77,1.397]
[1764799657466,0.62539799,914.83,913.77,1.397]
[1764799657761,0.62539799,914.82,913.77,1.397]
[1764799657964,0.62539799,914.81,913.77,1.397]
[1764799658167,0.62539799,914.8,913.77,1.397]
[1764799658365,0.62539799,914.79,913.77,1.397]
[1764799658664,0.62539799,914.78,913.77,1.397]
[1764799658864,0.62539799,914.77,913.77,1.397]
[1764799659060,0.62539799,914.76,913.77,1.397]
[1764799659268,0.62539799,914.75,913.77,1.397]
[1764799659561,0.62539799,914.74,913.77,1.397]
[1764799659762,0.62539799,914.73,913.77,1.397]
[1764799660063,0.62539799,914.72,913.77,1.397]
[1764799660262,0.62539799,914.71,913.77,1.397]
[1764799660461,0.62539799,914.7,913.77,1.397]
[1764799660661,1.08534688,915.16,913.77,1.397]
[1764799660866,0.62629726,915.15,913.77,1.397]
[1764799661163,0.62629726,915.14,913.77,1.397]
[1764799661361,0.62629726,915.13,913.77,1.397]
[1764799661562,0.62629726,915.12,913.77,1.397]
[1764799661765,0.62629726,915.11,913.77,1.397]
[1764799661965,0.62629726,915.1,913.77,1.397]
[1764799662166,0.62629726,915.09,913.77,1.397]
[1764799662367,0.62629726,915.08,913.77,1.397]
[1764799662567,0.62629726,915.07,913.77,1.397]
[1764799662768,0.62629726,915.06,913.77,1.397]
[1764799662962,0.62629726,915.05,913.77,1.397]
[1764799663162,0.62629726,915.04,913.77,1.397]
[1764799663362,0.62629726,915.03,913.77,1.397]
[1764799663567,0.62629726,915.02,913.77,1.397]
[1764799663763,0.62629726,915.01,913.77,1.397]
[1764799663968,0.62629726,915.0,913.77,1.397]
[1764799664168,0.62629726,914.99,913.77,1.397]
[1764799664469,0.62629726,914.98,913.77,1.397]
[1764799664669,0.62629726,914.97,913.77,1.397]
[1764799664869,0.62629726,914.96,913.77,1.397]
[1764799665068,0.62629726,914.95,913.77,1.397]
[1764799665265,0.62629726,914.94,913.77,1.397]
[1764799665470,0.62629726,914.93,913.77,1.397]
[1764799665766,0.62629726,914.92,913.77,1.397]
[1764799665970,0.62629726,914.91,913.77,1.397]
[1764799666267,0.62629726,914.9,913.77,1.397]
[1764799666571,0.62629726,914.89,913.77,1.397]
[1764799666772,0.62629726,914.88,913.77,1.397]
[1764799666967,0.62629726,914.87,913.77,1.397]
[1764799667168,0.62629726,914.86,913.77,1.397]
[1764799667367,0.62629726,914.85,913.77,1.397]
[1764799667570,0.62629726,914.84,913.77,1.397]
[1764799667772,0.62629726,914.83,913.77,1.397]
[1764799668068,0.62629726,914.82,913.77,1.397]
[1764799668369,0.62629726,914.81,913.77,1.397]
[1764799668667,0.62629726,914.8,913.77,1.397]
[1764799668867,0.62629726,914.79,913.77,1.397]
[1764799669172,0.62629726,914.78,913.77,1.397]
[1764799669373,0.62629726,914.77,913.77,1.397]
[1764799669575,0.62629726,914.76,913.76,1.475]
[1764799669870,0.62629726,914.75,913.76,1.475]
[1764799670069,0.62629726,914.74,913.76,1.475]
[1764799670372,0.62629726,914.73,913.76,1.475]
[1764799670570,0.62629726,914.72,913.76,1.475]
[1764799670873,0.62629726,914.71,913.76,1.475]
[1764799671069,0.62629726,914.7,913.72,1.59695995]
[1764799671270,0.62629726,914.69,913.72,1.59695995]
[1764799671471,0.62629726,914.68,913.72,1.59695995]
[1764799671674,1.08534688,915.14,913.73,1.59695995]
[1764799671871,0.62604708,915.13,913.73,2.73095995]
[1764799672073,0.62604708,915.12,913.73,2.73095995]
[1764799672275,0.62604708,915.11,913.74,1.59695995]
[1764799672471,0.62604708,915.1,913.74,1.59695995]
[1764799672770,0.62604708,915.09,913.74,1.59695995]
[1764799672975,0.62604708,915.08,913.74,1.59695995]
[1764799673175,0.62604708,915.07,913.74,1.59695995]
[1764799673371,0.62604708,915.06,913.74,1.59695995]
[1764799673576,0.62604708,915.05,913.74,1.59695995]
[1764799673775,0.62604708,915.04,913.74,1.59695995]
[1764799673972,0.62604708,915.03,913.74,1.59695995]
[1764799674173,0.62604708,915.02,913.74,1.59695995]
[1764799674474,0.62604708,915.01,913.74,1.59695995]
[1764799674675,0.62604708,915.0,913.75,1.215]
[1764799674875,0.62604708,914.99,913.75,1.215]
[1764799675077,0.62604708,914.98,913.75,1.215]
[1764799675378,0.62604708,914.97,913.75,1.215]
[1764799675573,0.62604708,914.96,913.75,1.215]
[1764799675772,0.62604708,914.95,913.75,1.215]
[1764799675970,0.62604708,914.94,913.75,1.215]
[1764799676172,1.08534688,915.13,913.75,1.215]
[1764799676173,0.62604708,914.93,913.75,1.215]
[1764799676373,0.62604708,914.92,913.75,1.215]
[1764799676576,0.62604708,914.91,913.75,1.215]
[1764799676774,0.62604708,914.9,913.75,1.215]
[1764799676974,0.62604708,914.89,913.75,1.215]
[1764799677174,0.62604708,914.88,913.75,1.215]
[1764799677378,0.62604708,914.87,913.75,1.215]
[1764799677575,0.62604708,914.86,913.75,1.215]
[1764799677778,0.62604708,914.85,913.75,1.215]
[1764799677976,1.08534688,915.12,913.75,1.215]
[1764799677977,0.62604708,914.84,913.75,1.215]
[1764799678180,0.62604708,914.83,913.75,1.215]
[1764799678474,0.62604708,914.82,913.75,1.215]
[1764799678677,0.62604708,914.81,913.75,1.215]
[1764799678976,0.62604708,914.8,913.75,1.215]
[1764799679280,0.01096545,915.76,913.75,1.215]
[1764799679281,0.62604708,914.79,913.75,1.215]
[1764799679477,0.62604708,914.78,913.75,1.215]
[1764799679681,0.62604708,914.77,913.75,1.215]
[1764799679875,0.62604708,914.76,913.75,1.215]
[1764799680177,0.62604708,914.75,913.75,1.215]
[1764799680380,0.62604708,914.74,913.75,1.215]
[1764799680579,0.62604708,914.73,913.75,1.215]
[1764799680779,0.62604708,914.72,913.75,1.215]
[1764799680979,0.62604708,914.71,913.75,1.215]
[1764799681181,0.62604708,914.7,913.75,1.215]
[1764799681380,0.62604708,914.69,913.75,1.215]
[1764799681581,0.62604708,914.68,913.75,1.215]
[1764799681882,0.62604708,914.67,913.75,1.215]
[1764799682178,0.62604708,914.66,913.75,1.215]
[1764799682383,0.62604708,914.65,913.75,1.215]
[1764799682579,0.62604708,914.64,913.75,1.215]
[1764799682781,0.62604708,914.63,913.75,1.215]
[1764799682980,0.62604708,914.62,913.75,1.215]
[1764799683179,0.62604708,914.61,913.75,1.215]
[1764799683383,0.62604708,914.6,913.75,1.215]
[1764799683583,0.62604708,914.59,913.75,1.215]
[1764799683881,0.62604708,914.58,913.75,1.215]
[1764799684181,0.62604708,914.57,913.75,1.215]
[1764799684478,0.62604708,914.56,913.75,1.215]
[1764799684681,0.62604708,914.55,913.75,1.215]
[1764799684878,0.62604708,914.54,913.75,1.215]
[1764799685078,0.62604708,914.53,913.75,1.215]
[1764799685282,0.62604708,914.52,913.75,1.215]
[1764799685482,0.62604708,914.51,913.75,1.215]
[1764799685782,0.62604708,914.5,913.75,1.215]
[1764799685982,0.62604708,914.49,913.75,1.215]
[1764799686177,0.62604708,914.48,913.75,1.215]
[1764799686380,0.62604708,914.47,913.75,1.215]
[1764799686579,0.62604708,914.46,913.75,1.215]
[1764799686781,0.62604708,914.45,913.75,1.215]
[1764799686982,0.62604708,914.44,913.75,1.215]
[1764799687281,0.62604708,914.43,913.75,1.215]
[1764799687482,0.62604708,914.42,913.75,1.215]
[1764799687680,0.62604708,914.41,913.75,1.215]
[1764799687878,0.62604708,914.4,913.75,1.215]
[1764799688082,1.08534688,914.85,913.75,1.215]
[1764799688381,0.62581616,914.84,913.75,1.215]
[1764799688579,0.62581616,914.83,913.75,1.215]
[1764799688881,0.62581616,914.82,913.75,1.215]
[1764799689081,0.62581616,914.81,913.75,1.215]
[1764799689280,0.62581616,914.8,913.75,1.215]
[1764799689477,0.62581616,914.79,913.75,1.215]
[1764799689681,0.62581616,914.78,913.75,1.215]
[1764799689879,0.62581616,914.77,913.75,1.215]
[1764799690184,0.62581616,914.76,913.75,1.215]
[1764799690378,0.62581616,914.75,913.75,1.215]
[1764799690583,1.08534688,914.87,913.75,1.215]
[1764799690584,0.62581616,914.74,913.75,1.215]
[1764799690779,0.62581616,914.73,913.75,1.215]
[1764799690981,0.62581616,914.72,913.75,1.215]
[1764799691181,0.62581616,914.71,913.75,1.215]
[1764799691382,0.62581616,914.7,913.75,1.215]
[1764799691584,0.62581616,914.69,913.75,1.215]
[1764799691778,0.62581616,914.68,913.75,1.215]
[1764799691981,0.62581616,914.67,913.75,1.215]
[1764799692181,0.62581616,914.66,913.75,1.215]
[1764799692380,0.62581616,914.65,913.75,1.215]
[1764799692584,0.62581616,914.64,913.75,1.215]
[1764799692785,0.62581616,914.63,913.75,1.215]
[1764799692985,0.62581616,914.62,913.75,1.215]
[1764799693185,0.62581616,914.61,913.75,1.215]
[1764799693386,1.63072085,915.17,913.75,1.215]
[1764799693387,0.62581616,914.6,913.75,1.215]
[1764799693587,0.62581616,914.59,913.75,1.215]
[1764799693783,0.62581616,914.58,913.75,1.215]
[1764799693988,1.08534688,915.04,913.75,1.215]
[1764799694186,0.62555031,915.03,913.75,1.215]
[1764799694389,0.62555031,915.02,913.75,1.215]
[1764799694584,1.08534688,915.06,913.75,1.215]
[1764799694585,0.62555031,915.01,913.75,1.215]
[1764799694785,0.62555031,915.0,913.75,1.215]
[1764799694985,0.62555031,914.99,913.75,1.215]
[1764799695188,0.62555031,914.98,913.75,1.215]
[1764799695386,0.62555031,914.97,913.75,1.215]
[1764799695586,0.62555031,914.96,913.75,1.215]
[1764799695789,0.62555031,914.95,913.75,1.215]
[1764799696085,0.62555031,914.94,913.75,1.215]
[1764799696288,0.62555031,914.93,913.75,1.215]
[1764799696492,1.08534688,915.15,913.75,1.215]
[1764799696493,0.62555031,914.92,913.75,1.215]
[1764799696691,0.62555031,914.91,913.75,1.215]
[1764799696889,0.62555031,914.9,913.75,1.215]
[1764799697091,0.62555031,914.89,913.75,1.215]
[1764799697291,0.62555031,914.88,913.75,1.215]
[1764799697489,0.62555031,914.87,913.75,1.215]
[1764799697789,0.62555031,914.86,913.75,1.215]
[1764799697992,0.62555031,914.85,913.75,1.215]
[1764799698194,0.62555031,914.84,913.75,1.215]
[1764799698391,0.62555031,914.83,913.75,1.215]
[1764799698590,0.62555031,914.82,913.75,1.215]
[1764799698793,0.62555031,914.81,913.75,1.215]
[1764799698993,0.62555031,914.8,913.75,1.215]
[1764799699190,0.62555031,914.79,913.75,1.215]
[1764799699491,0.62555031,914.78,913.75,1.215]
[1764799699689,0.62555031,914.77,913.75,1.215]
[1764799699894,0.62555031,914.76,913.75,1.215]
[1764799700189,0.62555031,914.75,913.75,1.215]
[1764799700390,0.62555031,914.74,913.75,1.215]
[1764799700694,0.62555031,914.73,913.75,1.215]
[1764799700892,0.62555031,914.72,913.75,1.215]
[1764799701089,0.62555031,914.71,913.75,1.215]
[1764799701291,0.62555031,914.7,913.75,1.215]
[1764799701487,0.62555031,914.69,913.75,1.215]
[1764799701690,0.62555031,914.68,913.75,1.215]
[1764799701890,0.62555031,914.67,913.75,1.215]
[1764799702090,0.62555031,914.66,913.75,1.215]
[1764799702394,0.62555031,914.65,913.75,1.215]
[1764799702694,0.62555031,914.64,913.75,1.215]
[1764799702894,0.62555031,914.63,913.75,1.215]
[1764799703190,0.62555031,914.62,913.75,1.215]
[1764799703394,0.62555031,914.61,913.75,1.215]
[1764799703592,0.62555031,914.6,913.75,1.215]
[1764799703794,0.62555031,914.59,913.75,1.215]
[1764799703997,0.62555031,914.58,913.75,1.215]
[1764799704191,0.62555031,914.57,913.75,1.215]
[1764799704391,0.62555031,914.56,913.75,1.215]
[1764799704594,0.62555031,914.55,913.75,1.215]
[1764799704894,1.08534688,915.01,913.75,1.215]
[1764799705092,0.62133556,915.0,913.75,1.215]
[1764799705289,0.62133556,914.99,913.75,1.215]
[1764799705493,0.62133556,914.98,913.75,1.215]
[1764799705692,0.62133556,914.97,913.75,1.215]
[1764799705890,0.62133556,914.96,913.75,1.215]
[1764799706091,0.62133556,914.95,913.75,1.215]
[1764799706296,0.62133556,914.94,913.75,1.215]
[1764799706493,0.62133556,914.93,913.75,1.215]
[1764799706695,0.62133556,914.92,913.75,1.215]
[1764799706896,0.62133556,914.91,913.75,1.215]
[1764799707196,0.62133556,914.9,913.75,1.215]
[1764799707397,0.62133556,914.89,913.75,1.215]
[1764799707596,0.62133556,914.88,913.75,1.215]
[1764799707796,0.62133556,914.87,913.75,1.215]
[1764799707992,0.62133556,914.86,913.75,1.215]
[1764799708192,0.62133556,914.85,913.75,1.215]
[1764799708492,0.62133556,914.84,913.75,1.215]
[1764799708697,0.62133556,914.83,913.75,1.215]
[1764799708898,0.62133556,914.82,913.75,1.215]
[1764799709197,0.62133556,914.81,913.75,1.215]
[1764799709398,0.62133556,914.8,913.75,1.215]
[1764799709698,0.62133556,914.79,913.75,1.215]
[1764799709893,0.62133556,914.78,913.75,1.215]
[1764799710194,1.08534688,915.05,913.75,1.215]
[1764799710195,0.62133556,914.77,913.75,1.215]
[1764799710394,0.62133556,914.76,913.75,1.215]
[1764799710697,0.62133556,914.75,913.75,1.215]
[1764799710898,0.62133556,914.74,913.75,1.215]
[1764799711098,0.62133556,914.73,913.75,1.215]
[1764799711294,0.62133556,914.72,913.75,1.215]
[1764799711593,0.62133556,914.71,913.75,1.215]
[1764799711794,0.62133556,914.7,913.75,1.215]
[1764799711996,0.62133556,914.69,913.75,1.215]
[1764799712298,0.62133556,914.68,913.75,1.215]
[1764799712598,0.62133556,914.67,913.75,1.215]
[1764799712794,0.62133556,914.66,913.75,1.215]
[1764799712999,0.62133556,914.65,913.75,1.215]
[1764799713199,0.62133556,914.64,913.75,1.215]
[1764799713400,0.62133556,914.63,913.75,1.215]
[1764799713696,0.00937366,915.7,913.75,1.215]
[1764799713697,0.62133556,914.62,913.75,1.215]
[1764799713996,0.62133556,914.61,913.75,1.215]
[1764799714195,0.62133556,914.6,913.75,1.215]
[1764799714500,0.62133556,914.59,913.75,1.215]
[1764799714699,0.62133556,914.58,913.75,1.215]
[1764799714999,0.62133556,914.57,913.75,1.215]
[1764799715200,0.62133556,914.56,913.75,1.215]
[1764799715401,0.62133556,914.55,913.75,1.215]
[1764799715601,0.62133556,914.54,913.75,1.215]
[1764799715902,0.62133556,914.53,913.75,1.215]
[1764799716101,0.62133556,914.52,913.75,1.215]
[1764799716299,0.62133556,914.51,913.75,1.215]
[1764799716512,0.62133556,914.5,913.75,1.215]
[1764799716704,0.62133556,914.49,913.75,1.215]
[1764799716900,0.62133556,914.48,913.75,1.215]
[1764799717102,0.62133556,914.47,913.75,1.215]
[1764799717300,1.08534688,914.93,913.75,1.215]
[1764799717500,0.62192295,914.92,913.75,1.215]
[1764799717704,0.62192295,914.91,913.75,1.215]
[1764799717902,0.62192295,914.9,913.75,1.215]
[1764799718204,0.62192295,914.89,913.75,1.215]
[1764799718503,0.62192295,914.88,913.75,1.215]
[1764799718701,0.62192295,914.87,913.75,1.215]
[1764799718899,0.62192295,914.86,913.75,1.215]
[1764799719101,0.62192295,914.85,913.75,1.215]
[1764799719402,0.62192295,914.84,913.75,1.215]
[1764799719602,0.62192295,914.83,913.75,1.215]
[1764799719802,0.62192295,914.82,913.75,1.215]
[1764799720106,0.62192295,914.81,913.75,1.215]
[1764799720305,0.62192295,914.8,913.75,1.215]
[1764799720603,0.62192295,914.79,913.75,1.215]
[1764799720801,0.62192295,914.78,913.75,1.215]
[1764799721002,0.62192295,914.77,913.75,1.215]
[1764799721204,0.62192295,914.76,913.75,1.215]
[1764799721406,0.62192295,914.75,913.75,1.215]
[1764799721602,0.62192295,914.74,913.75,1.215]
[1764799721901,0.62192295,914.73,913.75,1.215]
[1764799722105,0.62192295,914.72,913.75,1.215]
[1764799722302,0.62192295,914.71,913.75,1.215]
[1764799722601,0.62192295,914.7,913.75,1.215]
[1764799722805,0.62192295,914.69,913.75,1.215]
[1764799723007,0.62192295,914.68,913.75,1.215]
[1764799723307,0.62192295,914.67,913.75,1.215]
[1764799723505,0.62192295,914.66,913.75,1.215]
[1764799723804,0.62192295,914.65,913.75,1.215]
[1764799724012,0.62192295,914.64,913.75,1.215]
[1764799724210,0.62192295,914.63,913.75,1.215]
[1764799724408,0.62192295,914.62,913.75,1.215]
[1764799724708,1.08534688,914.92,913.75,1.215]
[1764799724709,0.62192295,914.61,913.75,1.215]
[1764799724909,0.62192295,914.6,913.75,1.215]
[1764799725112,0.62192295,914.59,913.75,1.215]
[1764799725312,0.62192295,914.58,913.75,1.215]
[1764799725512,0.62192295,914.57,913.75,1.215]
[1764799725712,0.62192295,914.56,913.75,1.215]
[1764799725909,0.62192295,914.55,913.61,1.59695995]
[1764799726209,0.62192295,914.54,913.61,1.59695995]
[1764799726514,0.62192295,914.53,913.61,1.59695995]
[1764799726712,0.62192295,914.52,913.61,1.59695995]
[1764799726910,0.62192295,914.51,913.61,1.59695995]
[1764799727113,0.62192295,914.5,913.61,1.59695995]
[1764799727309,0.62192295,914.49,913.62,1.59695995]
[1764799727614,0.62192295,914.48,913.62,1.59695995]
[1764799727913,0.62192295,914.47,913.62,1.59695995]
[1764799728112,0.62192295,914.46,913.62,1.59695995]
[1764799728412,0.62168081,914.45,913.62,1.59695995]
[1764799728613,1.08534688,914.91,913.62,1.59695995]
[1764799728814,0.62168081,914.9,913.63,1.59695995]
[1764799729016,0.62168081,914.89,913.63,1.59695995]
[1764799729215,0.62168081,914.88,913.63,1.59695995]
[1764799729510,0.62168081,914.87,913.63,1.59695995]
[1764799729714,0.62168081,914.86,913.63,1.59695995]
[1764799729912,0.62168081,914.85,913.64,1.417]
[1764799730110,0.62168081,914.84,913.64,1.417]
[1764799730314,0.62168081,914.83,913.64,1.417]
[1764799730510,0.62168081,914.82,913.64,1.417]
[1764799730815,0.62168081,914.81,913.64,1.417]
[1764799731011,0.62168081,914.8,913.64,1.417]
[1764799731213,0.62168081,914.79,913.64,1.417]
[1764799731412,0.62168081,914.78,913.64,3.01395995]
[1764799731614,0.62168081,914.77,913.64,3.01395995]
[1764799731814,0.62168081,914.76,913.64,3.01395995]
[1764799732012,0.62168081,914.75,913.64,3.01395995]
[1764799732209,0.62168081,914.74,913.64,3.01395995]
[1764799732414,0.62168081,914.73,913.64,3.01395995]
[1764799732616,0.62168081,914.72,913.64,1.417]
[1764799732813,0.62168081,914.71,913.64,3.01395995]
[1764799733117,0.62168081,914.7,913.64,3.01395995]
[1764799733413,0.62168081,914.69,913.65,1.59695995]
[1764799733617,0.62168081,914.68,913.65,1.59695995]
[1764799733914,0.62168081,914.67,913.65,1.59695995]
[1764799734118,0.62168081,914.66,913.65,1.59695995]
[1764799734416,0.62168081,914.65,913.65,1.59695995]
[1764799734617,0.62168081,914.64,913.65,1.59695995]
[1764799734911,0.62168081,914.63,913.64,3.01395995]
[1764799735117,0.62168081,914.62,913.65,1.59695995]
[1764799735418,0.62168081,914.61,913.65,1.59695995]
[1764799735614,0.62168081,914.6,913.66,1.59695995]
[1764799735815,0.62168081,914.59,913.66,1.59695995]
[1764799736013,0.62168081,914.58,913.66,1.59695995]
[1764799736218,0.62168081,914.57,913.66,1.59695995]
[1764799736414,0.62168081,914.56,913.66,1.59695995]
[1764799736613,0.62168081,914.55,913.66,1.59695995]
[1764799736816,0.62168081,914.54,913.66,1.59695995]
[1764799737018,0.62168081,914.53,913.66,1.59695995]
[1764799737220,0.62168081,914.52,913.66,1.59695995]
[1764799737419,0.62168081,914.51,913.67,1.59695995]
[1764799737619,0.62168081,914.5,913.67,1.59695995]
[1764799737920,0.62168081,914.49,913.67,1.59695995]
[1764799738117,0.62168081,914.48,913.66,1.59695995]
[1764799738317,0.62168081,914.47,913.67,1.59695995]
[1764799738515,0.62168081,914.46,913.67,1.59695995]
[1764799738814,0.62168081,914.45,913.67,1.59695995]
[1764799739018,0.62168081,914.44,913.67,1.59695995]
[1764799739218,0.62168081,914.43,913.67,1.59695995]
[1764799739516,0.62168081,914.42,913.67,1.59695995]
[1764799739715,0.62168081,914.41,913.67,1.59695995]
[1764799739916,0.62168081,914.4,913.67,1.59695995]
[1764799740119,1.08534688,914.86,913.67,1.59695995]
[1764799740319,0.62235789,914.85,913.67,1.59695995]
[1764799740516,0.62235789,914.84,913.67,1.59695995]
[1764799740716,0.62235789,914.83,913.67,1.59695995]
[1764799740921,0.62235789,914.82,913.67,1.59695995]
[1764799741221,1.08534688,914.87,913.68,1.59695995]
[1764799741222,0.62235789,914.81,913.68,1.59695995]
[1764799741421,0.62235789,914.8,913.68,1.59695995]
[1764799741621,0.62235789,914.79,913.68,1.59695995]
[1764799741821,0.62235789,914.78,913.68,1.59695995]
[1764799742022,0.62235789,914.77,913.73,1.59695995]
[1764799742222,0.62235789,914.76,913.73,1.59695995]
[1764799742522,0.62235789,914.75,913.64,1.417]
[1764799742721,0.62235789,914.74,913.64,1.417]
[1764799742918,0.62235789,914.73,913.64,1.417]
[1764799743120,0.62235789,914.72,913.64,1.417]
[1764799743318,0.62235789,914.71,913.64,1.417]
[1764799743522,0.62235789,914.7,913.64,1.417]
[1764799743820,0.62235789,914.69,913.64,1.417]
[1764799744020,1.08534688,914.64,913.64,1.417]
[1764799744220,0.62235789,914.63,913.64,1.417]
[1764799744424,1.08534688,914.59,913.64,1.417]
[1764799744618,0.62235789,914.58,913.64,1.417]
[1764799744824,0.62235789,914.57,913.64,1.417]
[1764799745020,1.08534688,914.53,913.64,1.417]
[1764799745319,1.70770477,914.52,913.64,1.417]
[1764799745524,0.62235789,914.51,913.64,1.417]
[1764799745724,0.62235789,914.5,913.64,1.417]
[1764799746023,1.08534688,914.48,913.64,1.417]
[1764799746325,0.62235789,914.47,913.64,1.417]
[1764799746521,0.62235789,914.46,913.64,1.417]
[1764799746721,0.62235789,914.45,913.64,1.417]
[1764799746920,1.63072085,914.66,913.64,1.417]
[1764799746921,1.08534688,914.43,913.64,1.417]
[1764799747128,0.62235789,914.42,913.64,1.417]
[1764799747425,0.62235789,914.41,913.64,1.417]
[1764799747621,0.62235789,914.4,913.64,1.417]
[1764799747820,0.62235789,914.39,913.64,1.417]
[1764799748021,0.62235789,914.38,913.64,1.417]
[1764799748222,0.62235789,914.37,913.64,1.417]
[1764799748425,0.62235789,914.36,913.64,1.417]
[1764799748622,0.62235789,914.35,913.64,1.417]
[1764799748827,0.62235789,914.34,913.64,1.417]
[1764799749125,0.62235789,914.33,913.64,1.417]
[1764799749327,0.62235789,914.32,913.64,1.417]
[1764799749528,0.62235789,914.31,913.64,1.417]
[1764799749728,0.62235789,914.3,913.64,1.417]
[1764799749929,0.62235789,914.29,913.64,1.417]
[1764799750226,0.62235789,914.28,913.64,1.417]
[1764799750423,0.62235789,914.27,913.64,1.417]
[1764799750627,0.62235789,914.26,913.64,1.417]
[1764799750828,0.62235789,914.25,913.64,1.417]
[1764799751027,0.62235789,914.24,913.64,1.417]
[1764799751227,0.62235789,914.23,913.64,1.417]
[1764799751425,0.62235789,914.22,913.64,1.417]
[1764799751723,0.62235789,914.21,913.64,1.417]
[1764799751930,0.62235789,914.2,913.36,1.105]
[1764799752125,0.62235789,914.19,913.36,1.105]
[1764799752429,0.62235789,914.18,913.36,1.105]
[1764799752623,0.62235789,914.17,913.36,1.105]
[1764799752929,0.62235789,914.16,913.36,1.105]